Body Name,Body,Transaction Date,Value,Supplier,Description,Purchase Type,Cost Center,Department,Section
South Ribble Council,http://Statistics.Data.gov.uk\Doc\Local Authority\30UN,17/04/2020,111.00,St Andrews Hotel,Homelessness COVID 19 provision for NAME REDACTED 17.4.2020 x 3 nights Room 7,Online Purchase,101019,Homelessness,Homelessness
South Ribble Council,http://Statistics.Data.gov.uk\Doc\Local Authority\30UN,22/05/2020,168.00,mercure hotels,emergency room booked for bank holiday re covid 19 homelessness,Online Purchase,101019,Homelessness,Homelessness
South Ribble Council,http://Statistics.Data.gov.uk\Doc\Local Authority\30UN,22/05/2020,168.00,mercure hotel,mercure hotel emergency room for Covid19.... bank holiday weekend 22.5.2020,Online Purchase,101019,Homelessness,Homelessness
South Ribble Council,http://Statistics.Data.gov.uk\Doc\Local Authority\30UN,24/04/2020,75.00,AnyVan Limited,removal van to free up NAME REDACTED at ADDRESS REDACTED - NAME REDACTED moved to ADDRESS REDACTED,Online Purchase,101019,Homelessness,Homelessness
South Ribble Council,http://Statistics.Data.gov.uk\Doc\Local Authority\30UN,15/05/2020,20.00,AVACAB LTD,taxi for NAME REDACTED travel from Purple Roomz to ADDRESS REDACTED via Civic Centre 15.5.2020 ref REDACTED,Online Purchase,101019,Homelessness,Homelessness
South Ribble Council,http://Statistics.Data.gov.uk\Doc\Local Authority\30UN,27/04/2020,617.50,DVLA,ROAD TAX VX18 KLC,Road Tax,172830,Area 2 - Waste Transport/Easte,Mechanics & Transport
South Ribble Council,http://Statistics.Data.gov.uk\Doc\Local Authority\30UN,23/04/2020,32.50,DVLA,Road tax ML07 LCM - Apr 20,Road Tax,172600,Area 2 - Waste Transport/Easte,Mechanics & Transport
South Ribble Council,http://Statistics.Data.gov.uk\Doc\Local Authority\30UN,23/04/2020,267.50,DVLA,Road tax PE08 COH - Apr 20,Road Tax,172100,Area 2 - Waste Transport/Easte,Mechanics & Transport
South Ribble Council,http://Statistics.Data.gov.uk\Doc\Local Authority\30UN,23/04/2020,267.50,DVLA,Road tax PE08 CXU - Apr 20,Road Tax,171600,Area 2 - Waste Transport/Easte,Mechanics & Transport
South Ribble Council,http://Statistics.Data.gov.uk\Doc\Local Authority\30UN,23/04/2020,267.50,DVLA,Road tax PE08YCZ - Apr 20,Road Tax,171200,Area 2 - Waste Transport/Easte,Mechanics & Transport
South Ribble Council,http://Statistics.Data.gov.uk\Doc\Local Authority\30UN,23/04/2020,267.50,DVLA,Road tax BX19 EPD - Apr 20,Road Tax,172400,Area 2 - Waste Transport/Easte,Mechanics & Transport
South Ribble Council,http://Statistics.Data.gov.uk\Doc\Local Authority\30UN,23/04/2020,267.50,DVLA,Road tax BX19 EPF - Apr 20,Road Tax,172400,Area 2 - Waste Transport/Easte,Mechanics & Transport
South Ribble Council,http://Statistics.Data.gov.uk\Doc\Local Authority\30UN,23/04/2020,267.50,DVLA,Road tax BX19EPJ - Apr 20,Road Tax,172400,Area 2 - Waste Transport/Easte,Mechanics & Transport
South Ribble Council,http://Statistics.Data.gov.uk\Doc\Local Authority\30UN,23/04/2020,267.50,DVLA,Road tax BX19 EPK - Apr 20,Road Tax,172400,Area 2 - Waste Transport/Easte,Mechanics & Transport
South Ribble Council,http://Statistics.Data.gov.uk\Doc\Local Authority\30UN,23/04/2020,267.50,DVLA,Road tax BX19 EPE - Apr 20,Road Tax,172400,Area 2 - Waste Transport/Easte,Mechanics & Transport
South Ribble Council,http://Statistics.Data.gov.uk\Doc\Local Authority\30UN,23/04/2020,267.50,DVLA,Road tax BX19 EPC - Apr 20,Road Tax,172400,Area 2 - Waste Transport/Easte,Mechanics & Transport
South Ribble Council,http://Statistics.Data.gov.uk\Doc\Local Authority\30UN,26/06/2020,267.50,DVLA,PO12 JZC - Road tax Jun 20,Online Purchase,172300,Area 2 - Waste Transport/Easte,Mechanics & Transport
South Ribble Council,http://Statistics.Data.gov.uk\Doc\Local Authority\30UN,26/06/2020,267.50,DVLA,BP16 WKC Road tax Jun 2020,Online Purchase,171200,Area 2 - Waste Transport/Easte,Mechanics & Transport
South Ribble Council,http://Statistics.Data.gov.uk\Doc\Local Authority\30UN,26/06/2020,267.50,DVLA,BP16 WKG - Road tax Jun 2020,Online Purchase,171200,Area 2 - Waste Transport/Easte,Mechanics & Transport
South Ribble Council,http://Statistics.Data.gov.uk\Doc\Local Authority\30UN,26/06/2020,267.50,DVLA,Road tax - BP16 WKL Jun 2020,Online Purchase,171200,Area 2 - Waste Transport/Easte,Mechanics & Transport
South Ribble Council,http://Statistics.Data.gov.uk\Doc\Local Authority\30UN,26/06/2020,267.50,DVLA,Road tax - BP16 WLL Jun 2020,Online Purchase,171200,Area 2 - Waste Transport/Easte,Mechanics & Transport
South Ribble Council,http://Statistics.Data.gov.uk\Doc\Local Authority\30UN,26/06/2020,267.50,DVLA,Road tax - PO12 JZA Jun 2020,Online Purchase,172300,Area 2 - Waste Transport/Easte,Mechanics & Transport
South Ribble Council,http://Statistics.Data.gov.uk\Doc\Local Authority\30UN,26/06/2020,617.50,DVLA,Road tax - PF18 JOV Jun 2020,Online Purchase,172840,Area 2 - Waste Transport/Easte,Mechanics & Transport
South Ribble Council,http://Statistics.Data.gov.uk\Doc\Local Authority\30UN,20/04/2020,8.44,IONOS,Extended support 13 Apr to 13 May 2020 re website for NAME REDACTED,Online Purchase,103100,Regeneration,Community Infrastructure
South Ribble Council,http://Statistics.Data.gov.uk\Doc\Local Authority\30UN,23/04/2020,-19.25,Avanti West Coast,Rail travel cancelled due to course cancelled,Refund,153000,Regeneration,Community Infrastructure
South Ribble Council,http://Statistics.Data.gov.uk\Doc\Local Authority\30UN,22/05/2020,8.44,IONOS,IONOS FOR SOUTH RIBBLE PARTNERSHIP WEBSITE,Online Purchase,103100,Revenues Plus,Revenues Plus
South Ribble Council,http://Statistics.Data.gov.uk\Doc\Local Authority\30UN,12/06/2020,96.00,INGLEWOOD BOUTIQUE HOTEL,ACCOMMODATION TO ATTEND COUNCIL MEETING,Accomodation,143400,Revenues Plus,Revenues Plus
South Ribble Council,http://Statistics.Data.gov.uk\Doc\Local Authority\30UN,18/06/2020,"1,134.00",RICS,CORPORATE REAL ESTATE AND FACILITIES MANAGEMENT QUALIFICATION FOR NAME REDACTED,Online Purchase,102000,Revenues Plus,Revenues Plus
South Ribble Council,http://Statistics.Data.gov.uk\Doc\Local Authority\30UN,22/06/2020,8.44,IONIS,SUPPORT FOR SOUTH RIBBLE PARTNERSHIP WEBSITE,Online Purchase,103100,Revenues Plus,Revenues Plus
South Ribble Council,http://Statistics.Data.gov.uk\Doc\Local Authority\30UN,01/04/2020,11.56,Savers,Supplies for COVID 19 support,Store Purchase,101019,Regeneration,Community Infrastructure
South Ribble Council,http://Statistics.Data.gov.uk\Doc\Local Authority\30UN,01/04/2020,96.22,Tesco,Supplies for Covid 19 support,Online Purchase,101019,Regeneration,Community Infrastructure
South Ribble Council,http://Statistics.Data.gov.uk\Doc\Local Authority\30UN,01/04/2020,254.60,Savers,Supplies for COVID 19 support,Store Purchase,101019,Regeneration,Community Infrastructure
South Ribble Council,http://Statistics.Data.gov.uk\Doc\Local Authority\30UN,01/04/2020,737.55,Batleys,Supplies for COVID 19 support,Online Purchase,101019,Regeneration,Community Infrastructure
South Ribble Council,http://Statistics.Data.gov.uk\Doc\Local Authority\30UN,02/04/2020,378.61,Batleys,Supplies for COVID 19 support,Online Purchase,101019,Regeneration,Community Infrastructure
South Ribble Council,http://Statistics.Data.gov.uk\Doc\Local Authority\30UN,06/04/2020,21.75,Egg Boxes,Supplies for COVID 19 support,Online Purchase,101019,Regeneration,Community Infrastructure
South Ribble Council,http://Statistics.Data.gov.uk\Doc\Local Authority\30UN,08/04/2020,-101.96,Batleys,Credit for use of credit card for items not obtained,Refund,101019,Regeneration,Community Infrastructure
South Ribble Council,http://Statistics.Data.gov.uk\Doc\Local Authority\30UN,08/04/2020,61.36,Batleys,Supplies for Covid 19 support,Online Purchase,101019,Regeneration,Community Infrastructure
South Ribble Council,http://Statistics.Data.gov.uk\Doc\Local Authority\30UN,08/04/2020,"1,135.05",Batleys,Supplies for Covid 19 support,Online Purchase,101019,Regeneration,Community Infrastructure
South Ribble Council,http://Statistics.Data.gov.uk\Doc\Local Authority\30UN,09/04/2020,70.11,Batleys,Supplies for Covid 19 support,Online Purchase,101019,Regeneration,Community Infrastructure
South Ribble Council,http://Statistics.Data.gov.uk\Doc\Local Authority\30UN,09/04/2020,"1,933.40",Batleys,Supplies for Covid 19 support,Online Purchase,101019,Regeneration,Community Infrastructure
South Ribble Council,http://Statistics.Data.gov.uk\Doc\Local Authority\30UN,16/04/2020,296.67,Batleys,Supplies for Covid 19 support,Online Purchase,101019,Regeneration,Community Infrastructure
South Ribble Council,http://Statistics.Data.gov.uk\Doc\Local Authority\30UN,17/04/2020,40.00,Spar,Supplies for Covid 19 support,Store Purchase,101019,Regeneration,Community Infrastructure
South Ribble Council,http://Statistics.Data.gov.uk\Doc\Local Authority\30UN,17/04/2020,67.07,B and M Bargains,Supplies for Covid 19 support,Store Purchase,101019,Regeneration,Community Infrastructure
South Ribble Council,http://Statistics.Data.gov.uk\Doc\Local Authority\30UN,20/04/2020,105.44,Batleys,Items for Covid-19 support project,Online Purchase,101019,Regeneration,Community Infrastructure
South Ribble Council,http://Statistics.Data.gov.uk\Doc\Local Authority\30UN,20/04/2020,360.59,Batleys,Items for Covid-19 support project,Online Purchase,101019,Regeneration,Community Infrastructure
South Ribble Council,http://Statistics.Data.gov.uk\Doc\Local Authority\30UN,28/04/2020,48.70,Batleys,Items for the Covid 19 project,Online Purchase,101019,Regeneration,Community Infrastructure
South Ribble Council,http://Statistics.Data.gov.uk\Doc\Local Authority\30UN,13/05/2020,245.25,Spar,Supplies for food parcels for holiday hunger project for May 2020,Store Purchase,114820,Regeneration,Community Infrastructure
South Ribble Council,http://Statistics.Data.gov.uk\Doc\Local Authority\30UN,18/05/2020,495.00,Waitrose,Supplies for Holiday Hunger for May/June,Store Purchase,114820,Regeneration,Community Infrastructure
South Ribble Council,http://Statistics.Data.gov.uk\Doc\Local Authority\30UN,19/05/2020,111.80,Batleys,Supplies for Holiday Hunger project May/June,Online Purchase,114820,Regeneration,Community Infrastructure
South Ribble Council,http://Statistics.Data.gov.uk\Doc\Local Authority\30UN,19/05/2020,294.37,Batleys,Supplies for Holiday Hunger project May/June,Online Purchase,114820,Regeneration,Community Infrastructure
South Ribble Council,http://Statistics.Data.gov.uk\Doc\Local Authority\30UN,19/05/2020,942.73,Batleys,Supplies for Holiday Hunger project for May/June,Online Purchase,114820,Regeneration,Community Infrastructure
South Ribble Council,http://Statistics.Data.gov.uk\Doc\Local Authority\30UN,20/05/2020,8.25,Asda,Supplies for Holiday Hunger project for May/June,Store Purchase,114820,Regeneration,Community Infrastructure
South Ribble Council,http://Statistics.Data.gov.uk\Doc\Local Authority\30UN,03/06/2020,115.33,Morrisons,Items for Covid 19 project,Store Purchase,101019,Regeneration,Community Infrastructure
South Ribble Council,http://Statistics.Data.gov.uk\Doc\Local Authority\30UN,08/06/2020,75.38,Morrisons,Items to support the Covid 19 project,Store Purchase,101019,Regeneration,Community Infrastructure
South Ribble Council,http://Statistics.Data.gov.uk\Doc\Local Authority\30UN,15/06/2020,297.77,Morrisons,Items for Covid 19 project,Store Purchase,101019,Regeneration,Community Infrastructure
South Ribble Council,http://Statistics.Data.gov.uk\Doc\Local Authority\30UN,25/06/2020,20.70,Morrisons,Items for Covid 19 project,Store Purchase,101019,Regeneration,Community Infrastructure
South Ribble Council,http://Statistics.Data.gov.uk\Doc\Local Authority\30UN,30/06/2020,461.83,Morrisons,Items for Covid 19 project,Store Purchase,101019,Regeneration,Community Infrastructure
